fUSD/lending_fUSD_20240524
["ID","MTS","AMOUNT","RATE_DAILY","PERIOD"]
[327822047,1716510632419,-14003.08412077,0.0003,4]
[327822048,1716510632428,-2343.63542169,0.0003,4]
[327822049,1716510632439,-14003.08412077,0.0003,4]
[327822050,1716510632448,-14003.08412077,0.0003,4]
[327822051,1716510632457,-14003.08412077,0.0003,4]
[327822052,1716510632467,-8129.64727189,0.0003,2]
[327822053,1716510632476,-23830.32925495,0.0003,4]
[327822054,1716510632486,-1003.62,0.0003,2]
[327822055,1716510632495,-150.0,0.0003,11]
[327822056,1716510632505,-407.597291,0.0003,2]
[327822057,1716510632514,-306.24,0.0003,2]
[327822058,1716510632524,-48.66346803,0.00030163,5]
[327822059,1716510632533,-840.0,0.00030336,2]
[327822060,1716510632543,-197.43732811,0.00030491,2]
[327822061,1716510632552,-500.0,0.00030491,5]
[327822062,1716510632561,-1611.57695351,0.00030491,4]
[327822063,1716510632571,-830.95568173,0.00030511,2]
[327822064,1716510632580,-1003.62,0.00030865,2]
[327822065,1716510632589,-830.95568173,0.00031122,2]
[327822066,1716510632598,-200.0,0.00031187,2]
[327822067,1716510632607,-500.0,0.00031187,2]
[327822068,1716510632616,-1003.62,0.0003173,2]
[327822069,1716510632625,-830.95568173,0.00031733,2]
[327822070,1716510632634,-306.24,0.00031765,2]
[327822071,1716510632644,-180.0,0.00031818,2]
[327822072,1716510632653,-155.0,0.00032,4]
[327822073,1716510632663,-476.63731463,0.00032,4]
[327822074,1716510632672,-317.89,0.00032256,2]
[327822075,1716510632682,-830.95568173,0.00032344,2]
[327822076,1716510632695,-150.0,0.00032449,120]
[327822077,1716510632703,-180.77864081,0.00032548,3]
[327822078,1716510632713,-1003.62,0.00032595,2]
[327822079,1716510632722,-150.0,0.00032754,2]
[327822080,1716510632731,-150.0,0.00032754,2]
[327822081,1716510632739,-150.0,0.00032754,2]
[327822082,1716510632748,-741.90321108,0.00032768,2]
[327822083,1716510632757,-160.0,0.000328,6]
[327822084,1716510632767,-150.0,0.000328,7]
[327822085,1716510632776,-500.0,0.00032867,2]
[327822086,1716510632786,-207.0,0.00032868,2]
[327822087,1716510632795,-42832.82918824,0.00032868,2]
[327822088,1716510632808,-449.84035098,0.00032868,2]
[327822089,1716510632822,-239.34675418,0.00032868,2]
[327822090,1716510632832,-4186.6200629,0.00032868,2]
[327822091,1716510632842,-1561.889969,0.00032868,2]
[327822092,1716510632851,-277.68616652,0.00032868,2]
[327822093,1716510632860,-1374.8906491,0.00032876,2]
[327822094,1716510632869,-500.0,0.00032876,6]
[327822095,1716510632879,-500.0,0.00032876,6]
[327822096,1716510632888,-500.0,0.00032876,6]
[327822097,1716510632898,-500.0,0.00032876,6]
[327822098,1716510632907,-215.81904897,0.00032876,6]
[327822100,1716510632915,-500.0,0.00032876,6]
[327822102,1716510632925,-500.0,0.00032876,6]
[327822104,1716510632934,-500.0,0.00032876,6]
[327822106,1716510632947,-500.0,0.00032876,6]
[327822108,1716510632956,-516.03,0.00032876,6]
[327822110,1716510632966,-500.0,0.00032876,6]
[327822112,1716510632975,-500.0,0.00032876,6]
[327822113,1716510632985,-500.0,0.00032876,6]
[327822114,1716510632995,-8655.8452527,0.00032877,2]
[327822116,1716510633008,-3499.02376926,0.00032877,2]
[327822123,1716510633065,-6946.41327428,0.00032877,2]
[327822125,1716510633078,-1652.31001679,0.00032877,2]
[327822127,1716510633089,-2514.71600352,0.00032877,2]
[327822130,1716510633100,-1047.42676983,0.00032877,2]
[327822132,1716510633116,-2248.99689501,0.00032877,2]
[327822134,1716510633127,-363.2425254,0.00032877,2]
[327822137,1716510633138,-1836.77399846,0.00032877,2]
[327822139,1716510633149,-4070.04457788,0.00032877,2]
[327822141,1716510633160,-2011.148602,0.00032877,2]
[327822143,1716510633171,-342.93404351,0.00032877,2]
[327822145,1716510633183,-2638.28427136,0.00032877,2]
[327822147,1716510633194,-12438.89571546,0.00032877,2]
[327822150,1716510633205,-15568.00364316,0.00032877,2]
[327822181,1716510638003,-1135.53216571,0.00026,5]
[327822182,1716510638014,-450.89332225,0.00026,5]
[327822183,1716510638026,-272.32466048,0.00026,5]
[327822184,1716510638037,-324.95664198,0.00026,5]
[327822185,1716510638048,-2330.71214622,0.00026,5]
[327822186,1716510638100,-548.09566506,0.00026,5]
[327822187,1716510638195,-18382.52084716,0.00026,5]
[327822188,1716510638205,-19619.25064138,0.00032877,2]
[327822189,1716510638214,-200.62290041,0.00032877,30]
[327822190,1716510638223,-8137.63386188,0.00032877,2]
[327822191,1716510638236,-4202.688885,0.00032877,2]
[327822192,1716510638286,-605.59957612,0.00032877,2]
[327822195,1716510640370,-1203.02931797,0.00032876,2]
[327822196,1716510640569,-2297.43163144,0.00032877,2]
[327822197,1716510640581,-19612.72771656,0.00032877,2]
[327822198,1716510640591,-3989.19820797,0.00032877,2]
[327822199,1716510640602,-197.42185493,0.00032877,2]
[327822200,1716510640611,-851.16090807,0.00032877,2]
[327822201,1716510640622,-370.82112014,0.00032877,2]
[327822202,1716510640634,-339.90794079,0.00032877,2]
[327822203,1716510640643,-39.0720592,0.00032877,7]
[327822204,1716510640655,-110.9279408,0.00032877,7]
[327822205,1716510640665,-150.0,0.00032877,7]
[327822206,1716510640674,-150.0,0.00032877,7]
[327822207,1716510640684,-163.03531773,0.00032877,7]
[327822208,1716510640695,-150.0,0.00032877,7]
[327822209,1716510640704,-204.42630442,0.00032877,7]
[327822210,1716510640714,-663.36082,0.00032877,2]
[327822211,1716510640724,-350.0,0.0003289,2]
[327822212,1716510640734,-37.15483051,0.00032897,2]
[327822213,1716510640747,-2290.30100646,0.00032897,2]
[327822214,1716510640758,-12627.73691319,0.00032897,2]
[327822215,1716510640768,-167.35,0.00032899,2]
[327822216,1716510640778,-167.35,0.00032899,2]
[327822217,1716510640787,-167.35,0.00032899,2]
[327822218,1716510640796,-167.35,0.00032899,2]
[327822219,1716510640806,-167.35,0.00032899,2]
[327822220,1716510640815,-167.35,0.00032899,2]
[327822221,1716510640824,-167.35,0.00032899,2]
[327822222,1716510640833,-194.67119651,0.00032899,6]
[327822223,1716510640843,-505.8291578,0.00032899,6]
[327822224,1716510640852,-206.39966674,0.00032899,6]
[327822225,1716510640862,-500.0,0.00032899,6]
[327822226,1716510640871,-500.0,0.00032899,6]
[327822227,1716510640880,-500.0,0.00032899,6]
[327822228,1716510640890,-500.0,0.00032899,6]
[327822229,1716510640899,-500.0,0.00032899,6]
[327822230,1716510640909,-500.0,0.00032899,6]
[327822231,1716510640918,-500.0,0.00032899,6]
[327822232,1716510640928,-500.0,0.00032899,6]
[327822233,1716510640937,-500.0,0.00032899,6]
[327822234,1716510640949,-500.0,0.00032899,6]
[327822235,1716510640959,-500.0,0.00032899,6]
[327822236,1716510640969,-500.0,0.00032899,6]
[327822237,1716510640978,-511.28144384,0.00032899,6]
[327822238,1716510640988,-500.0,0.00032899,6]
[327822239,1716510640997,-500.0,0.00032899,6]
[327822240,1716510641007,-500.0,0.00032899,6]
[327822241,1716510641016,-36959.24105103,0.000329,30]
[327822242,1716510641032,-326131.98012836,0.000329,30]
[327822243,1716510641041,-304.76,0.000329,2]
[327822244,1716510641050,-500.16,0.000329,2]
[327822245,1716510641060,-13193.28005429,0.000329,30]
[327822246,1716510641070,-500.0,0.00032929,30]
[327822247,1716510641079,-830.95568173,0.00032956,2]
[327822248,1716510641089,-25000.0,0.00032977,2]
[327822249,1716510641099,-150.68,0.0003299,2]
[327822250,1716510641108,-976.00810463,0.00033,2]
[327822251,1716510641117,-15080.58129078,0.00033,2]
[327822252,1716510641126,-1250.0,0.00033,40]
[327822253,1716510641135,-500.0,0.00033,20]
[327822254,1716510641145,-2000.0,0.00033,2]
[327822255,1716510641155,-15227.15086553,0.00033,2]
[327822256,1716510641164,-7952.78306335,0.00033,2]
[327822257,1716510641174,-255.95,0.00033,120]
[327822258,1716510641183,-571.0,0.00033,22]
[327822259,1716510641194,-583.994799,0.00033,2]
[327822260,1716510641204,-741.90321108,0.0003306,2]
[327822261,1716510641213,-1499.61012837,0.00033068,5]
[327822263,1716510641222,-150.0,0.00033092,7]
[327822266,1716510641232,-500.0,0.0003315,6]
[327822267,1716510641245,-4186.6200629,0.00033179,2]
[327822269,1716510641254,-1561.889969,0.00033179,2]
[327822272,1716510641264,-500.0,0.00033202,30]
[327822273,1716510641273,-26190.1470487,0.00033239,2]
[327822274,1716510641285,-9351.84853853,0.00033287,2]
[327822275,1716510641294,-150.0,0.000333,7]
[327822276,1716510641304,-150.0,0.00033307,7]
[327822277,1716510641314,-151.0,0.0003333,41]
[327822278,1716510641325,-160.0,0.00033341,2]
[327822279,1716510641334,-310.0,0.00033342,4]
[327822280,1716510641344,-9351.84853851,0.0003335,2]
[327822281,1716510641354,-741.90321108,0.00033353,2]
[327822282,1716510641364,-304.76,0.000334,2]
[327822283,1716510641373,-500.16,0.000334,2]
[327822284,1716510641382,-1000.0,0.000334,2]
[327822285,1716510641391,-2710.56759551,0.000334,5]
[327822286,1716510641401,-500.0,0.00033424,6]
[327822287,1716510641411,-150.0,0.00033458,7]
[327822288,1716510641420,-1003.62,0.0003346,2]
[327822289,1716510641430,-500.0,0.00033476,30]
[327822290,1716510641441,-17524.2124263,0.00033477,2]
[327822291,1716510641450,-4186.6200629,0.00033477,2]
[327822292,1716510641460,-1561.889969,0.00033477,2]
[327822293,1716510641469,-150.68,0.0003349,2]
[327822294,1716510641478,-361.0,0.000335,5]
[327822295,1716510641487,-1141.44409785,0.000335,2]
[327822296,1716510641496,-571.0,0.000335,22]
[327822297,1716510641506,-7053.63,0.000335,2]
[327822298,1716510641515,-7053.63,0.000335,2]
[327822299,1716510641525,-5399.03,0.000335,2]
[327822300,1716510641535,-7053.63,0.000335,2]
[327822301,1716510641545,-5399.03,0.000335,2]
[327822302,1716510641555,-7053.63,0.000335,2]
[327822303,1716510641564,-5399.03,0.000335,2]
[327822304,1716510641573,-7053.63,0.000335,2]
[327822305,1716510641582,-5399.03,0.000335,2]
[327822306,1716510641602,-7053.63,0.000335,2]
[327822307,1716510641612,-5399.03,0.000335,2]
[327822308,1716510641623,-7053.63,0.000335,2]
[327822309,1716510641633,-5399.03,0.000335,2]
[327822310,1716510641643,-7053.63,0.000335,2]
[327822311,1716510641653,-5399.03,0.000335,2]
[327822312,1716510641662,-5399.03,0.000335,2]
[327822313,1716510641672,-7053.63,0.000335,2]
[327822314,1716510641683,-5399.03,0.000335,2]
[327822315,1716510641694,-7053.63,0.000335,2]
[327822316,1716510641703,-5399.03,0.000335,2]
[327822317,1716510641713,-7053.63,0.000335,2]
[327822318,1716510641722,-5399.03,0.000335,2]
[327822319,1716510641732,-7053.63,0.000335,2]
[327822320,1716510641741,-7053.63,0.000335,2]
[327822321,1716510641750,-5399.03,0.000335,2]
[327822322,1716510641760,-7053.63,0.000335,2]
[327822323,1716510641769,-5399.03,0.000335,2]
[327822324,1716510641780,-7053.63,0.000335,2]
[327822325,1716510641790,-5399.03,0.000335,2]
[327822326,1716510641801,-7053.63,0.000335,2]
[327822327,1716510641813,-5399.03,0.000335,2]
[327822328,1716510641822,-7053.63,0.000335,2]
[327822329,1716510641832,-5399.03,0.000335,2]
[327822330,1716510641842,-5399.03,0.000335,2]
[327822331,1716510641852,-7053.63,0.000335,2]
[327822332,1716510641862,-7053.63,0.000335,2]
[327822333,1716510641872,-5399.03,0.000335,2]
[327822334,1716510641882,-7053.63,0.000335,2]
[327822335,1716510641891,-5399.03,0.000335,2]
[327822336,1716510641901,-5399.03,0.000335,2]
[327822337,1716510641911,-150.0,0.00033523,7]
[327822338,1716510641920,-306.24,0.0003353,2]
[327822339,1716510641930,-830.95568173,0.00033567,2]
[327822340,1716510641942,-2710.56759544,0.00033582,5]
[327822341,1716510641952,-741.90321108,0.00033645,2]
[327822342,1716510641962,-605.0,0.00033668,3]
[327822343,1716510641972,-500.0,0.00033698,6]
[327822344,1716510641982,-150.0,0.00033738,7]
[327822345,1716510641991,-2710.56759544,0.00033764,6]
[327822346,1716510642001,-150.0,0.000338,8]
[327822347,1716510642011,-5400.0,0.0003388,28]
[327822348,1716510642020,-5400.0,0.0003388,29]
[327822349,1716510642030,-156.47575883,0.00033899,7]
[327822350,1716510642039,-156.47575883,0.00033899,7]
[327822351,1716510642049,-156.47575883,0.00033899,7]
[327822352,1716510642058,-156.47575883,0.00033899,7]
[327822353,1716510642068,-156.47575883,0.00033899,7]
[327822354,1716510642078,-156.47575883,0.00033899,7]
[327822355,1716510642087,-156.47575883,0.00033899,7]
[327822356,1716510642097,-156.47575883,0.00033899,7]
[327822357,1716510642106,-156.47575883,0.00033899,7]
[327822358,1716510642116,-156.47575883,0.00033899,7]
[327822359,1716510642126,-156.47575883,0.00033899,7]
[327822360,1716510642135,-156.47575883,0.00033899,7]
[327822361,1716510642144,-156.47575883,0.00033899,7]
[327822362,1716510642154,-156.47575883,0.00033899,7]
[327822363,1716510642163,-156.97,0.00033899,7]
[327822364,1716510642172,-469.50227648,0.00033899,7]
[327822365,1716510642181,-469.50227648,0.00033899,7]
[327822366,1716510642192,-469.50227648,0.00033899,7]
[327822367,1716510642202,-469.50227648,0.00033899,7]
[327822368,1716510642211,-469.50227648,0.00033899,7]
[327822369,1716510642221,-469.50227648,0.00033899,7]
[327822370,1716510642230,-469.50227648,0.00033899,7]
[327822371,1716510642244,-469.50227648,0.00033899,7]
[327822372,1716510642253,-469.50227648,0.00033899,7]
[327822373,1716510642262,-469.50227648,0.00033899,7]
[327822374,1716510642273,-469.50227648,0.00033899,7]
[327822375,1716510642282,-469.50227648,0.00033899,7]
[327822376,1716510642292,-469.50227648,0.00033899,7]
[327822377,1716510642301,-469.50227648,0.00033899,7]
[327822378,1716510642311,-469.50227648,0.00033899,7]
[327822379,1716510642322,-304.76,0.000339,2]
[327822380,1716510642331,-500.16,0.000339,2]
[327822381,1716510642342,-6070.0,0.000339,6]
[327822382,1716510642351,-9351.84853851,0.000339,2]
[327822383,1716510642360,-4186.6200629,0.00033901,2]
[327822384,1716510642370,-1561.889969,0.00033901,2]
[327822385,1716510642381,-252.775981,0.00033924,7]
[327822386,1716510642391,-151.0,0.00033924,7]
[327822387,1716510642401,-151.0,0.00033924,7]
[327822388,1716510642410,-151.0,0.00033924,7]
[327822389,1716510642420,-225.263401,0.00033924,7]
[327822390,1716510642430,-151.0,0.00033924,7]
[327822391,1716510642440,-151.0,0.00033924,7]
[327822392,1716510642450,-222.768604,0.00033924,7]
[327822393,1716510642459,-151.0,0.00033924,7]
[327822394,1716510642469,-390.885623,0.00033924,7]
[327822395,1716510642481,-390.885623,0.00033924,7]
[327822396,1716510642492,-151.0,0.00033924,7]
[327822397,1716510642502,-741.90321108,0.00033938,2]
[327822398,1716510642512,-2710.56759544,0.00033945,6]
[327822399,1716510642522,-150.0,0.00033953,7]
[327822400,1716510642531,-150.68,0.00033958,2]
[327822401,1716510642540,-151.0,0.00033968,7]
[327822402,1716510642550,-729.51048219,0.00033968,23]
[327822403,1716510642559,-223.80227328,0.00033968,2]
[327822404,1716510642569,-3956.42709031,0.00033968,2]
[327822405,1716510642579,-675.979378,0.00033968,7]
[327822406,1716510642590,-675.979378,0.00033968,7]
[327822407,1716510642600,-675.979378,0.00033968,7]
[327822408,1716510642610,-675.979378,0.00033968,7]
[327822409,1716510642621,-675.979378,0.00033968,7]
[327822410,1716510642632,-675.979378,0.00033968,7]
[327822411,1716510642642,-675.979378,0.00033968,7]
[327822412,1716510642652,-675.979378,0.00033968,7]
[327822413,1716510642661,-675.979378,0.00033968,7]
[327822414,1716510642670,-675.979378,0.00033968,7]
[327822415,1716510642680,-675.979378,0.00033968,7]
[327822416,1716510642689,-675.979378,0.00033968,7]
[327822417,1716510642699,-675.979378,0.00033968,7]
[327822418,1716510642709,-675.979378,0.00033968,7]
[327822419,1716510642718,-675.979378,0.00033968,7]
[327822420,1716510642728,-675.979378,0.00033968,7]
[327822421,1716510642738,-675.979378,0.00033968,7]
[327822422,1716510642748,-675.979378,0.00033968,7]
[327822423,1716510642757,-675.979378,0.00033968,7]
[327822424,1716510642768,-676.47,0.00033968,7]
[327822425,1716510642778,-2703.99251202,0.00033968,7]
[327822427,1716510642788,-2703.99251202,0.00033968,7]
[327822428,1716510642797,-2703.99251202,0.00033968,7]
[327822429,1716510642806,-2703.99251202,0.00033968,7]
[327822430,1716510642816,-2703.99251202,0.00033968,7]
[327822431,1716510642826,-2703.99251202,0.00033968,7]
[327822432,1716510642835,-2703.99251202,0.00033968,7]
[327822433,1716510642846,-2703.99251202,0.00033968,7]
[327822434,1716510642855,-2703.99251202,0.00033968,7]
[327822435,1716510642864,-2703.99251202,0.00033968,7]
[327822436,1716510642874,-2703.99251202,0.00033968,7]
[327822437,1716510642884,-2703.99251202,0.00033968,7]
[327822438,1716510642893,-2703.99251202,0.00033968,7]
[327822439,1716510642902,-2703.99251202,0.00033968,7]
[327822440,1716510642912,-2703.99251202,0.00033968,7]
[327822441,1716510642922,-766.77701794,0.00033968,7]
[327822442,1716510642931,-766.77701794,0.00033968,7]
[327822443,1716510642940,-766.77701794,0.00033968,7]
[327822444,1716510642951,-766.77701794,0.00033968,7]
[327822446,1716510642961,-766.77701794,0.00033968,7]
[327822447,1716510642971,-766.77701794,0.00033968,7]
[327822449,1716510642980,-766.77701794,0.00033968,7]
[327822451,1716510642990,-766.77701794,0.00033968,7]
[327822452,1716510642999,-766.77701794,0.00033968,7]
[327822453,1716510643008,-766.77701794,0.00033968,7]
[327822454,1716510643017,-766.77701794,0.00033968,7]
[327822455,1716510643027,-766.77701794,0.00033968,7]
[327822456,1716510643036,-766.77701794,0.00033968,7]
[327822457,1716510643045,-766.77701794,0.00033968,7]
[327822458,1716510643055,-766.77701794,0.00033968,7]
[327822460,1716510643064,-766.77701794,0.00033968,7]
[327822462,1716510643074,-766.77701794,0.00033968,7]
[327822463,1716510643083,-766.77701794,0.00033968,7]
[327822464,1716510643093,-766.77701794,0.00033968,7]
[327822465,1716510643103,-767.27,0.00033968,7]
[327822466,1716510643112,-3067.18307177,0.00033968,7]
[327822467,1716510643122,-3067.18307177,0.00033968,7]
[327822468,1716510643131,-3067.18307177,0.00033968,7]
[327822469,1716510643142,-3067.18307177,0.00033968,7]
[327822470,1716510643152,-3067.18307177,0.00033968,7]
[327822471,1716510643161,-3067.18307177,0.00033968,7]
[327822472,1716510643171,-3067.18307177,0.00033968,7]
[327822473,1716510643181,-3067.18307177,0.00033968,7]
[327822474,1716510643191,-3067.18307177,0.00033968,7]
[327822475,1716510643201,-3067.18307177,0.00033968,7]
[327822476,1716510643210,-3067.18307177,0.00033968,7]
[327822477,1716510643220,-3067.18307177,0.00033968,7]
[327822478,1716510643233,-3067.18307177,0.00033968,7]
[327822479,1716510643246,-3067.18307177,0.00033968,7]
[327822480,1716510643257,-3067.18307177,0.00033968,7]
[327822481,1716510643268,-157.66479107,0.00033968,7]
[327822482,1716510643281,-157.66479107,0.00033968,7]
[327822483,1716510643294,-157.66479107,0.00033968,7]
[327822484,1716510643303,-157.66479107,0.00033968,7]
[327822485,1716510643314,-157.66479107,0.00033968,7]
[327822486,1716510643324,-157.66479107,0.00033968,7]
[327822487,1716510643334,-157.66479107,0.00033968,7]
[327822488,1716510643343,-157.66479107,0.00033968,7]
[327822489,1716510643353,-157.66479107,0.00033968,7]
[327822490,1716510643362,-157.66479107,0.00033968,7]
[327822491,1716510643372,-157.66479107,0.00033968,7]
[327822492,1716510643381,-157.66479107,0.00033968,7]
[327822493,1716510643391,-157.66479107,0.00033968,7]
[327822494,1716510643400,-157.66479107,0.00033968,7]
[327822495,1716510643410,-157.66479107,0.00033968,7]
[327822496,1716510643419,-157.66479107,0.00033968,7]
[327822497,1716510643428,-157.66479107,0.00033968,7]
[327822498,1716510643437,-157.66479107,0.00033968,7]
[327822499,1716510643449,-157.66479107,0.00033968,7]
[327822500,1716510643458,-158.16,0.00033968,7]
[327822501,1716510643467,-630.73416428,0.00033968,7]
[327822502,1716510643477,-630.73416428,0.00033968,7]
[327822503,1716510643487,-630.73416428,0.00033968,7]
[327822504,1716510643496,-630.73416428,0.00033968,7]
[327822505,1716510643506,-630.73416428,0.00033968,7]
[327822506,1716510643517,-630.73416428,0.00033968,7]
[327822507,1716510643527,-630.73416428,0.00033968,7]
[327822508,1716510643537,-630.73416428,0.00033968,7]
[327822509,1716510643546,-630.73416428,0.00033968,7]
[327822510,1716510643556,-630.73416428,0.00033968,7]
[327822511,1716510643569,-630.73416428,0.00033968,7]
[327822512,1716510643579,-630.73416428,0.00033968,7]
[327822513,1716510643589,-630.73416428,0.00033968,7]
[327822514,1716510643599,-630.73416428,0.00033968,7]
[327822515,1716510643608,-630.73416428,0.00033968,7]
[327822516,1716510643618,-500.0,0.00033972,6]
[327822517,1716510643627,-8858.277804,0.00033977,2]
[327822518,1716510643637,-192.3431816,0.00033977,2]
[327822519,1716510643647,-4186.6200629,0.00033977,2]
[327822520,1716510643657,-1561.889969,0.00033977,2]
[327822521,1716510643667,-469.50227648,0.00033984,7]
[327822523,1716510643677,-2703.99251202,0.00033984,7]
[327822525,1716510643687,-3067.18307177,0.00033984,7]
[327822526,1716510643698,-630.73416428,0.00033984,7]
[327822527,1716510643708,-394.0,0.0003399,2]
[327822528,1716510643718,-150.68,0.0003399,2]
[327822529,1716510643727,-150.68,0.0003399,2]
[327822530,1716510643737,-148653.42543278,0.00034,15]
[327822531,1716510643748,-3295.95927105,0.00034,12]
[327822532,1716510643758,-1000.0,0.00034,2]
[327822533,1716510643767,-997.81,0.00034,20]
[327822534,1716510643776,-7061.5416081,0.00034,3]
[327822535,1716510643786,-3735.20411553,0.00034,5]
[327822536,1716510643931,-82028.05729464,0.00034,5]
[327822537,1716510643940,-20000.0,0.00034,9]
[327822538,1716510643951,-500.0,0.00034,30]
[327822539,1716510643960,-2000.0,0.00034,2]
[327822540,1716510643969,-300.0,0.00034,35]
[327822541,1716510643979,-571.0,0.00034,23]
[327822542,1716510643989,-161.213683,0.00034,23]
[327822543,1716510643999,-7053.63,0.00034,2]
[327822544,1716510644010,-7053.63,0.00034,2]
[327822545,1716510644020,-5399.03,0.00034,2]
[327822546,1716510644030,-7053.63,0.00034,2]
[327822547,1716510644039,-5399.03,0.00034,2]
[327822548,1716510644049,-7053.63,0.00034,2]
[327822549,1716510644059,-5399.03,0.00034,2]
[327822550,1716510644068,-7053.63,0.00034,2]
[327822551,1716510644078,-5399.03,0.00034,2]
[327822552,1716510644088,-5283.79451461,0.00034,2]
[327822553,1716510644100,-1769.83548539,0.00034,2]
[327822554,1716510644110,-1227.01574069,0.00034,2]
[327822555,1716510644121,-5826.61425931,0.00034,2]
[327822556,1716510644131,-3590.46551149,0.00034,2]
[327822557,1716510644143,-435.67082283,0.00034,2]
[327822558,1716510644158,-3027.49366568,0.00034,2]
[327822559,1716510644168,-7053.63,0.00034,2]
[327822560,1716510644178,-4614.57095828,0.00034,2]
[327822561,1716510644190,-784.45904172,0.00034,2]
[327822562,1716510644201,-4.6380542,0.00034,2]
[327822563,1716510644248,-1900.24289999,0.00034,2]
[327822564,1716510644260,-1388.38523422,0.00034,2]
[327822565,1716510644272,-2105.76381159,0.00034,2]
[327822566,1716510644283,-2118.12400895,0.00034,2]
[327822567,1716510644294,-883.3099993,0.00034,2]
[327822568,1716510644306,-2397.59599175,0.00034,2]
[327822569,1716510644319,-339.80648599,0.00034,2]
[327822570,1716510644331,-5059.22351401,0.00034,2]
[327822571,1716510644340,-7053.63,0.00034,2]
[327822572,1716510644350,-5399.03,0.00034,2]
[327822573,1716510644361,-7053.63,0.00034,2]
[327822574,1716510644371,-5399.03,0.00034,2]
[327822575,1716510644381,-7053.63,0.00034,2]
[327822576,1716510644391,-7053.63,0.00034,2]
[327822577,1716510644400,-5399.03,0.00034,2]
[327822578,1716510644410,-7053.63,0.00034,2]
[327822579,1716510644420,-5399.03,0.00034,2]
[327822580,1716510644430,-7053.63,0.00034,2]
[327822581,1716510644439,-7053.63,0.00034,2]
[327822582,1716510644450,-5399.03,0.00034,2]
[327822583,1716510644459,-5399.03,0.00034,2]
[327822584,1716510644470,-7053.63,0.00034,2]
[327822585,1716510644479,-5399.03,0.00034,2]
[327822586,1716510644489,-5399.03,0.00034,2]
[327822587,1716510644499,-7053.63,0.00034,2]
[327822588,1716510644509,-7053.63,0.00034,2]
[327822589,1716510644519,-5399.03,0.00034,2]
[327822590,1716510644529,-5399.03,0.00034,2]
[327822591,1716510644540,-7053.63,0.00034,2]
[327822592,1716510644550,-5399.03,0.00034,2]
[327822593,1716510644560,-5399.03,0.00034,2]
[327822594,1716510644570,-151.0,0.00034,7]
[327822595,1716510644580,-151.0,0.00034,7]
[327822596,1716510644590,-151.0,0.00034,7]
[327822597,1716510644760,-225.263401,0.00034,7]
[327822598,1716510644799,-151.0,0.00034,7]
[327822599,1716510644809,-296.882742,0.00034,7]
[327822600,1716510644820,-153.809367,0.00034,7]
[327822601,1716510644831,-390.885623,0.00034,7]
[327822602,1716510644841,-390.885623,0.00034,7]
[327822603,1716510644851,-151.0,0.00034,7]
[327822604,1716510644860,-151.0,0.00034,7]
[327822605,1716510644871,-12690.3415957,0.00034022,7]
[327822606,1716510644880,-150.0,0.00034039,7]
[327822607,1716510644890,-150.68,0.00034058,2]
[327822608,1716510644899,-151.0,0.00034065,7]
[327822609,1716510644909,-151.0,0.00034065,7]
[327822610,1716510644919,-14955.19275016,0.00034065,2]
[327822611,1716510644928,-4902.41678781,0.00034068,5]
[327822612,1716510644938,-113748.068532,0.00034068,15]
[327822613,1716510644949,-151.0,0.00034068,7]
[327822614,1716510644958,-168.388919,0.00034068,7]
[327822615,1716510644968,-151.0,0.00034068,7]
[327822616,1716510644977,-151.0,0.00034068,7]
[327822617,1716510644987,-151.0,0.00034068,7]
[327822618,1716510644997,-151.0,0.00034068,7]
[327822619,1716510645008,-151.0,0.00034068,7]
[327822620,1716510645018,-151.0,0.00034068,7]
[327822621,1716510645028,-151.0,0.00034068,7]